[Event "Early-Titled-Tuesday-Blitz-January-16-2024"]
[Site "Chess.com"]
[Date "2024.01.16"]
[Round "4"]
[White "Maus7"]
[Black "Franmu14"]
[Result "0-1"]
[WhiteElo "2509"]
[BlackElo "2688"]
[TimeControl "180+1"]
[EndTime "8:40:13 PST"]
[Termination "Franmu14 won by checkmate"]

1. e4 {[%clk 0:03:00.9]} 1... e5 {[%clk 0:02:56.6]} 2. Nf3 {[%clk 0:03:01.4]}
2... Nc6 {[%clk 0:02:57.4]} 3. Bb5 {[%clk 0:03:00.6]} 3... a6 {[%clk 0:02:57.2]}
4. Ba4 {[%clk 0:02:59.8]} 4... Nge7 {[%clk 0:02:57.7]} 5. Nc3 {[%clk 0:02:51.6]}
5... Ng6 {[%clk 0:02:56.8]} 6. h4 {[%clk 0:02:48.8]} 6... d6 {[%clk 0:02:56.4]}
7. h5 {[%clk 0:02:39.2]} 7... Nf4 {[%clk 0:02:55]} 8. d4 {[%clk 0:02:39.4]} 8...
b5 {[%clk 0:02:19.3]} 9. Bxf4 {[%clk 0:02:17]} 9... bxa4 {[%clk 0:02:16.5]} 10.
dxe5 {[%clk 0:02:13.8]} 10... Bg4 {[%clk 0:02:14.7]} 11. exd6 {[%clk 0:01:56.1]}
11... Bxd6 {[%clk 0:02:13.8]} 12. Bxd6 {[%clk 0:01:55.6]} 12... cxd6 {[%clk
0:02:14.7]} 13. h6 {[%clk 0:01:34.1]} 13... O-O {[%clk 0:02:06.1]} 14. hxg7
{[%clk 0:01:31.6]} 14... Re8 {[%clk 0:02:05.5]} 15. Qd5 {[%clk 0:01:27.3]} 15...
Ne5 {[%clk 0:01:58.6]} 16. O-O-O {[%clk 0:01:17.2]} 16... Qf6 {[%clk 0:01:36.5]}
17. Qxd6 {[%clk 0:01:03.1]} 17... Re6 {[%clk 0:01:22.9]} 18. Qd5 {[%clk
0:00:52.3]} 18... Rc8 {[%clk 0:01:17.3]} 19. Nxe5 {[%clk 0:00:18.3]} 19... Rxe5
{[%clk 0:01:14.8]} 20. Qd6 {[%clk 0:00:18.9]} 20... Re6 {[%clk 0:01:00.9]} 21.
Qh2 {[%clk 0:00:19.8]} 21... h6 {[%clk 0:00:45.7]} 22. f3 {[%clk 0:00:20.4]}
22... a3 {[%clk 0:00:45]} 23. fxg4 {[%clk 0:00:16]} 23... axb2+ {[%clk
0:00:44.1]} 24. Kb1 {[%clk 0:00:16.7]} 24... Qxc3 {[%clk 0:00:43.8]} 25. g5
{[%clk 0:00:16.2]} 25... Qxc2# {[%clk 0:00:42.8]} 0-1

[Event "Early-Titled-Tuesday-Blitz-January-16-2024"]
[Site "Chess.com"]
[Date "2024.01.16"]
[Round "4"]
[White "Polish_fighter3000"]
[Black "inneremptiness"]
[Result "1-0"]
[WhiteElo "3077"]
[BlackElo "2874"]
[TimeControl "180+1"]
[EndTime "8:40:15 PST"]
[Termination "Polish_fighter3000 won by resignation"]

1. d4 {[%clk 0:03:00.9]} 1... d5 {[%clk 0:02:59.3]} 2. Bg5 {[%clk 0:03:00.5]}
2... Nf6 {[%clk 0:02:56.5]} 3. Bxf6 {[%clk 0:02:59.3]} 3... gxf6 {[%clk
0:02:53.8]} 4. c4 {[%clk 0:02:59.1]} 4... e6 {[%clk 0:02:51.8]} 5. cxd5 {[%clk
0:02:56.5]} 5... Qxd5 {[%clk 0:02:49.3]} 6. Nf3 {[%clk 0:02:54.2]} 6... Bb4+
{[%clk 0:02:46.4]} 7. Nc3 {[%clk 0:02:53.3]} 7... c5 {[%clk 0:02:37]} 8. a3
{[%clk 0:02:21.7]} 8... Bxc3+ {[%clk 0:02:21.9]} 9. bxc3 {[%clk 0:02:22.6]} 9...
Nc6 {[%clk 0:02:21.2]} 10. e3 {[%clk 0:02:22.1]} 10... cxd4 {[%clk 0:02:18.7]}
11. cxd4 {[%clk 0:02:21.1]} 11... Qa5+ {[%clk 0:02:19.2]} 12. Nd2 {[%clk
0:02:21.1]} 12... Rg8 {[%clk 0:02:06.2]} 13. Qb1 {[%clk 0:02:02.8]} 13... f5
{[%clk 0:02:03]} 14. Ra2 {[%clk 0:01:58.1]} 14... Bd7 {[%clk 0:01:59.3]} 15. g3
{[%clk 0:01:44.4]} 15... Qd5 {[%clk 0:01:30.7]} 16. f3 {[%clk 0:01:44.4]} 16...
Rc8 {[%clk 0:01:22.3]} 17. Bc4 {[%clk 0:01:19.2]} 17... Qa5 {[%clk 0:01:17.2]}
18. Kf2 {[%clk 0:01:18]} 18... f4 {[%clk 0:00:45.4]} 19. gxf4 {[%clk 0:01:09.4]}
19... Qh5 {[%clk 0:00:44.1]} 20. h4 {[%clk 0:01:07.5]} 20... Ne7 {[%clk
0:00:30.4]} 21. Ne4 {[%clk 0:01:01.4]} 21... Kd8 {[%clk 0:00:13.2]} 22. Nf6
{[%clk 0:00:57.6]} 22... Qg6 {[%clk 0:00:13.1]} 23. Nxg8 {[%clk 0:00:56.4]}
23... Qxg8 {[%clk 0:00:04]} 24. Bd3 {[%clk 0:00:53.1]} 1-0

[Event "Early-Titled-Tuesday-Blitz-January-16-2024"]
[Site "Chess.com"]
[Date "2024.01.16"]
[Round "4"]
[White "bubeliang"]
[Black "PavelChernomordik"]
[Result "1-0"]
[WhiteElo "2765"]
[BlackElo "2419"]
[TimeControl "180+1"]
[EndTime "8:40:18 PST"]
[Termination "bubeliang won by resignation"]

1. e4 {[%clk 0:03:00.9]} 1... g6 {[%clk 0:02:59.8]} 2. h4 {[%clk 0:02:58.7]}
2... d5 {[%clk 0:02:59]} 3. exd5 {[%clk 0:02:56.9]} 3... Nf6 {[%clk 0:02:58.7]}
4. Bb5+ {[%clk 0:02:54.5]} 4... Bd7 {[%clk 0:02:50]} 5. Bxd7+ {[%clk 0:02:49.6]}
5... Qxd7 {[%clk 0:02:48.8]} 6. c3 {[%clk 0:02:49.3]} 6... Qxd5 {[%clk 0:02:47]}
7. Nf3 {[%clk 0:02:48.2]} 7... e5 {[%clk 0:02:36.2]} 8. d4 {[%clk 0:02:47]} 8...
e4 {[%clk 0:02:34.2]} 9. Ne5 {[%clk 0:02:45.4]} 9... Nbd7 {[%clk 0:02:27.9]} 10.
Bf4 {[%clk 0:02:44.2]} 10... Nh5 {[%clk 0:02:22]} 11. Bh2 {[%clk 0:02:42.6]}
11... Bg7 {[%clk 0:02:16.2]} 12. Nxd7 {[%clk 0:02:35.2]} 12... Qxd7 {[%clk
0:02:15.5]} 13. Nd2 {[%clk 0:02:35.7]} 13... f5 {[%clk 0:02:14.1]} 14. Nc4
{[%clk 0:02:35.2]} 14... O-O-O {[%clk 0:02:09.3]} 15. Qb3 {[%clk 0:02:33.3]}
15... f4 {[%clk 0:02:05]} 16. O-O-O {[%clk 0:02:30.7]} 16... Qg4 {[%clk
0:01:56.9]} 17. g3 {[%clk 0:02:17.5]} 17... Bh6 {[%clk 0:01:44.5]} 18. Kb1
{[%clk 0:02:15.3]} 18... Qe6 {[%clk 0:01:26.1]} 19. g4 {[%clk 0:02:12.1]} 19...
Qxg4 {[%clk 0:01:12.1]} 20. Na5 {[%clk 0:02:10.4]} 20... b6 {[%clk 0:01:11.5]}
21. Nc6 {[%clk 0:02:09.2]} 21... Rd6 {[%clk 0:01:06.9]} 22. Nxa7+ {[%clk
0:02:06.2]} 22... Kb7 {[%clk 0:01:06.5]} 23. Nb5 {[%clk 0:02:06.6]} 23... Rd7
{[%clk 0:01:02.4]} 24. d5 {[%clk 0:02:01.7]} 24... Qf5 {[%clk 0:00:58.5]} 25.
Qc4 {[%clk 0:01:57.2]} 25... Rhd8 {[%clk 0:00:53.3]} 26. Qc6+ {[%clk 0:01:51.7]}
26... Ka6 {[%clk 0:00:40]} 27. Nxc7+ {[%clk 0:01:47.9]} 27... Rxc7 {[%clk
0:00:38.1]} 28. Qxc7 {[%clk 0:01:48.8]} 28... e3+ {[%clk 0:00:33.8]} 29. Ka1
{[%clk 0:01:48.4]} 29... Rxd5 {[%clk 0:00:29.6]} 30. Qc4+ {[%clk 0:01:39.8]}
30... Rb5 {[%clk 0:00:25.6]} 31. Rd8 {[%clk 0:01:39.2]} 31... Kb7 {[%clk
0:00:21]} 32. Qa4 {[%clk 0:01:31.9]} 32... Ra5 {[%clk 0:00:18.6]} 33. Rd7+
{[%clk 0:01:31.9]} 33... Kb8 {[%clk 0:00:17.1]} 34. Qc6 {[%clk 0:01:30.6]} 34...
Rxa2+ {[%clk 0:00:09.9]} 35. Kxa2 {[%clk 0:01:31.5]} 35... Qa5+ {[%clk
0:00:09.2]} 36. Kb3 {[%clk 0:01:29.5]} 1-0

[Event "Early-Titled-Tuesday-Blitz-January-16-2024"]
[Site "Chess.com"]
[Date "2024.01.16"]
[Round "4"]
[White "Statham_01"]
[Black "ChessSwole"]
[Result "0-1"]
[WhiteElo "2542"]
[BlackElo "2711"]
[TimeControl "180+1"]
[EndTime "8:40:21 PST"]
[Termination "ChessSwole won by resignation"]

1. e4 {[%clk 0:03:00.9]} 1... c5 {[%clk 0:02:59]} 2. Nf3 {[%clk 0:02:59.8]} 2...
d6 {[%clk 0:02:58.8]} 3. d4 {[%clk 0:03:00.3]} 3... cxd4 {[%clk 0:02:59.7]} 4.
Nxd4 {[%clk 0:03:01.1]} 4... Nf6 {[%clk 0:03:00.3]} 5. Nc3 {[%clk 0:03:01.8]}
5... Nc6 {[%clk 0:03:01]} 6. Be3 {[%clk 0:02:59.7]} 6... Ng4 {[%clk 0:03:00.2]}
7. Bb5 {[%clk 0:02:59.6]} 7... Nxe3 {[%clk 0:02:57.2]} 8. fxe3 {[%clk
0:03:00.5]} 8... Bd7 {[%clk 0:02:57.8]} 9. O-O {[%clk 0:03:00.4]} 9... e6 {[%clk
0:02:57.1]} 10. Bxc6 {[%clk 0:02:57]} 10... bxc6 {[%clk 0:02:57]} 11. Qf3 {[%clk
0:02:55.7]} 11... Qf6 {[%clk 0:02:56.8]} 12. Qxf6 {[%clk 0:02:24.7]} 12... gxf6
{[%clk 0:02:57.7]} 13. Rxf6 {[%clk 0:02:25.5]} 13... Bg7 {[%clk 0:02:58.2]} 14.
Rf3 {[%clk 0:02:24.1]} 14... Be5 {[%clk 0:02:50.6]} 15. Raf1 {[%clk 0:02:19.1]}
15... f6 {[%clk 0:02:48.7]} 16. R3f2 {[%clk 0:01:59.1]} 16... Rb8 {[%clk
0:02:44.6]} 17. Nf3 {[%clk 0:01:20.1]} 17... Rxb2 {[%clk 0:02:24.3]} 18. Nxe5
{[%clk 0:01:20.4]} 18... fxe5 {[%clk 0:02:25.2]} 19. a3 {[%clk 0:01:04.4]} 19...
c5 {[%clk 0:02:02.7]} 20. h3 {[%clk 0:00:41.9]} 20... h5 {[%clk 0:01:59.9]} 21.
Kh2 {[%clk 0:00:41.5]} 21... h4 {[%clk 0:01:55.7]} 22. a4 {[%clk 0:00:26.5]}
22... a6 {[%clk 0:01:50.7]} 23. a5 {[%clk 0:00:20.6]} 23... Rg8 {[%clk 0:01:49]}
24. Kh1 {[%clk 0:00:20.6]} 24... Kd8 {[%clk 0:01:49]} 25. Rb1 {[%clk 0:00:17.3]}
25... Rxb1+ {[%clk 0:01:46.5]} 26. Nxb1 {[%clk 0:00:18.2]} 26... Ke7 {[%clk
0:01:46.2]} 27. Nd2 {[%clk 0:00:17.3]} 27... Rg3 {[%clk 0:01:42.5]} 28. Nf3
{[%clk 0:00:17.3]} 28... Bc6 {[%clk 0:01:40]} 29. Kh2 {[%clk 0:00:10.5]} 29...
Bxe4 {[%clk 0:01:38]} 30. Nxh4 {[%clk 0:00:09.7]} 30... Rxe3 {[%clk 0:01:38.2]}
31. c4 {[%clk 0:00:09.1]} 31... Rc3 {[%clk 0:01:35.2]} 32. Rb2 {[%clk
0:00:09.2]} 32... Rxc4 {[%clk 0:01:35]} 33. Rb6 {[%clk 0:00:08.9]} 33... Rb4
{[%clk 0:01:30.6]} 34. Rxa6 {[%clk 0:00:08.6]} 34... c4 {[%clk 0:01:30.9]} 35.
Ra7+ {[%clk 0:00:08.5]} 35... Rb7 {[%clk 0:01:30.9]} 36. Ra8 {[%clk 0:00:06.9]}
36... Rc7 {[%clk 0:01:30.6]} 37. Rg8 {[%clk 0:00:02.4]} 37... Kf7 {[%clk
0:01:31.1]} 38. Rg3 {[%clk 0:00:02.1]} 38... c3 {[%clk 0:01:30.6]} 39. Re3
{[%clk 0:00:02]} 39... c2 {[%clk 0:01:29.4]} 40. Rxe4 {[%clk 0:00:02.7]} 40...
c1=Q {[%clk 0:01:30]} 0-1

[Event "Early-Titled-Tuesday-Blitz-January-16-2024"]
[Site "Chess.com"]
[Date "2024.01.16"]
[Round "4"]
[White "DamianoLew95"]
[Black "Schachmalanders"]
[Result "1-0"]
[WhiteElo "2673"]
[BlackElo "2465"]
[TimeControl "180+1"]
[EndTime "8:40:22 PST"]
[Termination "DamianoLew95 won by resignation"]

1. e4 {[%clk 0:03:00]} 1... c6 {[%clk 0:02:48.3]} 2. Nf3 {[%clk 0:02:59]} 2...
d5 {[%clk 0:02:48.6]} 3. d3 {[%clk 0:02:59.9]} 3... Nf6 {[%clk 0:02:43.9]} 4. e5
{[%clk 0:02:58.8]} 4... Nfd7 {[%clk 0:02:44.2]} 5. d4 {[%clk 0:02:59.4]} 5... e6
{[%clk 0:02:43.7]} 6. c3 {[%clk 0:02:53.8]} 6... c5 {[%clk 0:02:43.7]} 7. Bd3
{[%clk 0:02:49]} 7... Nc6 {[%clk 0:02:43.5]} 8. Ng5 {[%clk 0:02:30.2]} 8... cxd4
{[%clk 0:02:30]} 9. Nxe6 {[%clk 0:02:29.4]} 9... Qb6 {[%clk 0:01:50.2]} 10. Nxd4
{[%clk 0:01:42.3]} 10... Nxd4 {[%clk 0:01:40.6]} 11. cxd4 {[%clk 0:01:43.2]}
11... Bb4+ {[%clk 0:01:40.5]} 12. Nc3 {[%clk 0:01:16.2]} 12... Qxd4 {[%clk
0:01:30.7]} 13. O-O {[%clk 0:01:13.7]} 13... Bxc3 {[%clk 0:01:29.2]} 14. bxc3
{[%clk 0:01:10.6]} 14... Qxc3 {[%clk 0:01:29.5]} 15. Be3 {[%clk 0:01:00.6]}
15... O-O {[%clk 0:01:27.4]} 16. Bd4 {[%clk 0:00:50]} 16... Qa5 {[%clk
0:01:24.6]} 17. e6 {[%clk 0:00:46.3]} 17... fxe6 {[%clk 0:01:13.8]} 18. Qh5
{[%clk 0:00:42.5]} 18... Nf6 {[%clk 0:00:59.6]} 19. Bxf6 {[%clk 0:00:41.9]}
19... Rxf6 {[%clk 0:01:00.5]} 20. Bxh7+ {[%clk 0:00:38.6]} 20... Kf8 {[%clk
0:00:58.9]} 21. Bg6 {[%clk 0:00:36.8]} 21... Bd7 {[%clk 0:00:53.7]} 22. Qh8+
{[%clk 0:00:34.5]} 22... Ke7 {[%clk 0:00:51.5]} 23. Qxg7+ {[%clk 0:00:35.1]}
23... Kd6 {[%clk 0:00:51.2]} 24. Qxf6 {[%clk 0:00:34.6]} 24... Rg8 {[%clk
0:00:45.6]} 25. Qf4+ {[%clk 0:00:28.6]} 25... e5 {[%clk 0:00:41.8]} 26. Qf6+
{[%clk 0:00:21.5]} 26... Be6 {[%clk 0:00:39]} 27. Bf7 {[%clk 0:00:21.1]} 1-0

[Event "Early-Titled-Tuesday-Blitz-January-16-2024"]
[Site "Chess.com"]
[Date "2024.01.16"]
[Round "4"]
[White "IngOscarArdila"]
[Black "TitarovVasiliYouTube"]
[Result "1-0"]
[WhiteElo "2374"]
[BlackElo "2528"]
[TimeControl "180+1"]
[EndTime "8:40:22 PST"]
[Termination "IngOscarArdila won by resignation"]

1. d4 {[%clk 0:03:00.2]} 1... d5 {[%clk 0:02:47.5]} 2. c4 {[%clk 0:02:59.5]}
2... e6 {[%clk 0:02:47.8]} 3. Nc3 {[%clk 0:02:55.2]} 3... a6 {[%clk 0:02:47.9]}
4. cxd5 {[%clk 0:02:53.4]} 4... exd5 {[%clk 0:02:48.8]} 5. Nf3 {[%clk
0:02:53.8]} 5... Nf6 {[%clk 0:02:48.9]} 6. Bg5 {[%clk 0:02:53.9]} 6... Be6
{[%clk 0:02:49.2]} 7. e3 {[%clk 0:02:54.3]} 7... Nbd7 {[%clk 0:02:49.8]} 8. Bd3
{[%clk 0:02:54.7]} 8... Bd6 {[%clk 0:02:50.1]} 9. O-O {[%clk 0:02:54.9]} 9... c6
{[%clk 0:02:50.5]} 10. Qc2 {[%clk 0:02:53.4]} 10... Qc7 {[%clk 0:02:49.1]} 11.
h3 {[%clk 0:02:51.2]} 11... h6 {[%clk 0:02:48.2]} 12. Bxf6 {[%clk 0:02:51.2]}
12... Nxf6 {[%clk 0:02:47.9]} 13. a3 {[%clk 0:02:51.6]} 13... O-O {[%clk
0:02:43.7]} 14. b4 {[%clk 0:02:51.4]} 14... Qe7 {[%clk 0:02:43.8]} 15. Ne5
{[%clk 0:02:49.7]} 15... a5 {[%clk 0:02:34.5]} 16. b5 {[%clk 0:02:41.3]} 16...
c5 {[%clk 0:02:26.1]} 17. f4 {[%clk 0:02:34.4]} 17... Rac8 {[%clk 0:02:23.1]}
18. Qb2 {[%clk 0:02:27.5]} 18... cxd4 {[%clk 0:02:01.1]} 19. exd4 {[%clk
0:02:27.3]} 19... Bc5 {[%clk 0:01:59.3]} 20. Na4 {[%clk 0:02:20.6]} 20... Ba7
{[%clk 0:01:56.9]} 21. b6 {[%clk 0:02:18]} 21... Bb8 {[%clk 0:01:55.8]} 22. Nc5
{[%clk 0:02:17.5]} 22... Bd6 {[%clk 0:01:30]} 23. Nxe6 {[%clk 0:02:02.5]} 23...
Qxe6 {[%clk 0:01:26]} 24. Rae1 {[%clk 0:01:51.3]} 24... Ne4 {[%clk 0:01:25.5]}
25. f5 {[%clk 0:01:30.7]} 25... Qe8 {[%clk 0:01:09.7]} 26. Bxe4 {[%clk
0:01:29.4]} 26... dxe4 {[%clk 0:01:10.6]} 27. f6 {[%clk 0:01:28.6]} 27... Bxe5
{[%clk 0:00:45]} 28. dxe5 {[%clk 0:01:27.5]} 28... g6 {[%clk 0:00:42.6]} 29.
Rxe4 {[%clk 0:01:24.2]} 29... Qe6 {[%clk 0:00:40.6]} 30. Qd2 {[%clk 0:01:22.4]}
30... Qxb6+ {[%clk 0:00:38.5]} 31. Kh1 {[%clk 0:01:22.7]} 31... Kh7 {[%clk
0:00:36.6]} 32. Rh4 {[%clk 0:01:20.9]} 32... h5 {[%clk 0:00:32.1]} 33. Qg5
{[%clk 0:01:16.6]} 33... Qb2 {[%clk 0:00:05.9]} 34. Rxh5+ {[%clk 0:01:12.9]} 1-0

[Event "Early-Titled-Tuesday-Blitz-January-16-2024"]
[Site "Chess.com"]
[Date "2024.01.16"]
[Round "4"]
[White "CaspiIsrael"]
[Black "Chessbard1972"]
[Result "1-0"]
[WhiteElo "2636"]
[BlackElo "2403"]
[TimeControl "180+1"]
[EndTime "8:40:24 PST"]
[Termination "CaspiIsrael won by checkmate"]

1. d4 {[%clk 0:02:59.7]} 1... Nf6 {[%clk 0:02:58.7]} 2. c4 {[%clk 0:02:59.5]}
2... g6 {[%clk 0:02:59]} 3. Nc3 {[%clk 0:02:57.4]} 3... Bg7 {[%clk 0:02:59]} 4.
e4 {[%clk 0:02:57.7]} 4... d6 {[%clk 0:02:59.6]} 5. f3 {[%clk 0:02:58.2]} 5...
O-O {[%clk 0:02:59.3]} 6. Be3 {[%clk 0:02:58.8]} 6... Nbd7 {[%clk 0:02:58.8]} 7.
Nge2 {[%clk 0:02:59.3]} 7... c5 {[%clk 0:02:58.5]} 8. Qd2 {[%clk 0:02:55.9]}
8... Re8 {[%clk 0:02:57.2]} 9. d5 {[%clk 0:02:55.3]} 9... Ne5 {[%clk 0:02:56.2]}
10. Ng3 {[%clk 0:02:55.5]} 10... e6 {[%clk 0:02:56.1]} 11. Be2 {[%clk
0:02:55.4]} 11... exd5 {[%clk 0:02:55.1]} 12. cxd5 {[%clk 0:02:56.3]} 12... a6
{[%clk 0:02:55]} 13. a4 {[%clk 0:02:56.6]} 13... h5 {[%clk 0:02:54]} 14. O-O
{[%clk 0:02:57.2]} 14... h4 {[%clk 0:02:53.6]} 15. Nh1 {[%clk 0:02:57.9]} 15...
h3 {[%clk 0:02:54]} 16. g3 {[%clk 0:02:49.7]} 16... Rb8 {[%clk 0:02:52.7]} 17.
a5 {[%clk 0:02:47.9]} 17... b5 {[%clk 0:02:51.4]} 18. axb6 {[%clk 0:02:48.3]}
18... Qxb6 {[%clk 0:02:48.2]} 19. Ra2 {[%clk 0:02:48.4]} 19... Qb4 {[%clk
0:02:45.3]} 20. Nf2 {[%clk 0:02:43.2]} 20... Nc4 {[%clk 0:02:42.4]} 21. Bxc4
{[%clk 0:02:43.2]} 21... Qxc4 {[%clk 0:02:42.9]} 22. Rfa1 {[%clk 0:02:38]} 22...
Nh5 {[%clk 0:02:29.2]} 23. g4 {[%clk 0:02:31.9]} 23... Nf6 {[%clk 0:02:25.7]}
24. Nxh3 {[%clk 0:02:31.7]} 24... Bxg4 {[%clk 0:02:22.4]} 25. fxg4 {[%clk
0:02:31.2]} 25... Nxg4 {[%clk 0:02:22.6]} 26. Nf2 {[%clk 0:02:22.2]} 26... Nxe3
{[%clk 0:02:18.7]} 27. Qxe3 {[%clk 0:02:23.1]} 27... Bd4 {[%clk 0:02:17.4]} 28.
Qf3 {[%clk 0:02:22.1]} 28... f5 {[%clk 0:02:13.4]} 29. Kh1 {[%clk 0:02:15.6]}
29... Rf8 {[%clk 0:02:11.6]} 30. Rg1 {[%clk 0:02:05.9]} 30... Kh7 {[%clk
0:01:57.4]} 31. Qh3+ {[%clk 0:01:55.5]} 31... Kg7 {[%clk 0:01:55]} 32. exf5
{[%clk 0:01:55.8]} 32... Rf6 {[%clk 0:01:28.1]} 33. fxg6 {[%clk 0:01:23.8]}
33... Rxg6 {[%clk 0:01:13.9]} 34. Qd7+ {[%clk 0:01:16.3]} 34... Kh6 {[%clk
0:01:13.8]} 35. Ng4+ {[%clk 0:01:09.4]} 35... Kg5 {[%clk 0:01:03.4]} 36. Ne3+
{[%clk 0:01:07.3]} 36... Kf4 {[%clk 0:00:52.5]} 37. Qf5+ {[%clk 0:00:36.8]}
37... Kxe3 {[%clk 0:00:49.9]} 38. Qe4+ {[%clk 0:00:37.2]} 38... Kf2 {[%clk
0:00:43.4]} 39. Nd1# {[%clk 0:00:36.6]} 1-0

[Event "Early-Titled-Tuesday-Blitz-January-16-2024"]
[Site "Chess.com"]
[Date "2024.01.16"]
[Round "4"]
[White "LeoLV10"]
[Black "sofaceindisguise"]
[Result "0-1"]
[WhiteElo "2450"]
[BlackElo "2668"]
[TimeControl "180+1"]
[EndTime "8:40:29 PST"]
[Termination "sofaceindisguise won by resignation"]

1. e4 {[%clk 0:03:00.9]} 1... e5 {[%clk 0:02:26.2]} 2. Nf3 {[%clk 0:03:00.1]}
2... Nc6 {[%clk 0:02:26.9]} 3. Bb5 {[%clk 0:03:00.6]} 3... a6 {[%clk 0:02:27.6]}
4. Ba4 {[%clk 0:03:01.1]} 4... Bc5 {[%clk 0:02:27.6]} 5. c3 {[%clk 0:02:59.8]}
5... Nge7 {[%clk 0:02:25.4]} 6. O-O {[%clk 0:02:56.1]} 6... Ba7 {[%clk
0:02:25.8]} 7. d4 {[%clk 0:02:55.9]} 7... Ng6 {[%clk 0:02:23.2]} 8. Bg5 {[%clk
0:02:56]} 8... f6 {[%clk 0:02:22.6]} 9. Be3 {[%clk 0:02:55.2]} 9... O-O {[%clk
0:02:22.9]} 10. Nbd2 {[%clk 0:02:51.7]} 10... d6 {[%clk 0:02:18.9]} 11. h3
{[%clk 0:02:50.9]} 11... Kh8 {[%clk 0:02:15.7]} 12. Re1 {[%clk 0:02:27.6]} 12...
Nce7 {[%clk 0:02:14.5]} 13. Bc2 {[%clk 0:02:19.4]} 13... Bd7 {[%clk 0:02:10.1]}
14. Nf1 {[%clk 0:02:17.3]} 14... Qe8 {[%clk 0:02:03.1]} 15. Ng3 {[%clk
0:02:14.8]} 15... Nf4 {[%clk 0:01:54.8]} 16. Bxf4 {[%clk 0:01:16.6]} 16... exf4
{[%clk 0:01:55.1]} 17. Nf5 {[%clk 0:01:17.5]} 17... g5 {[%clk 0:01:55.5]} 18.
Nh2 {[%clk 0:01:13.9]} 18... Nxf5 {[%clk 0:01:47]} 19. exf5 {[%clk 0:01:13.5]}
19... Qf7 {[%clk 0:01:46]} 20. Qf3 {[%clk 0:01:06.5]} 20... c6 {[%clk
0:01:44.8]} 21. d5 {[%clk 0:00:48.3]} 21... cxd5 {[%clk 0:01:40]} 22. Rad1
{[%clk 0:00:47.2]} 22... Rae8 {[%clk 0:01:39.1]} 23. Rxe8 {[%clk 0:00:32.2]}
23... Rxe8 {[%clk 0:01:34.2]} 24. Nf1 {[%clk 0:00:32.3]} 24... Re5 {[%clk
0:01:31.9]} 25. Bb3 {[%clk 0:00:27.1]} 25... Bc6 {[%clk 0:01:27.4]} 26. g4
{[%clk 0:00:21.6]} 26... Kg7 {[%clk 0:01:18.8]} 27. Rd2 {[%clk 0:00:21.3]} 27...
h5 {[%clk 0:01:18.6]} 28. gxh5 {[%clk 0:00:15.6]} 28... Rxf5 {[%clk 0:01:18.5]}
29. Qg4 {[%clk 0:00:16]} 29... Re5 {[%clk 0:01:18.4]} 30. Bc2 {[%clk 0:00:12.8]}
30... Qe6 {[%clk 0:01:14.5]} 31. Qf3 {[%clk 0:00:08.1]} 31... d4 {[%clk
0:01:14.1]} 32. Qd3 {[%clk 0:00:07.4]} 32... Be4 {[%clk 0:01:13.6]} 33. Bb3
{[%clk 0:00:02.9]} 33... Bxd3 {[%clk 0:01:13.2]} 34. Bxe6 {[%clk 0:00:03.5]}
34... Bxf1 {[%clk 0:01:13.9]} 35. cxd4 {[%clk 0:00:04.1]} 35... Rxe6 {[%clk
0:01:14.1]} 36. Kxf1 {[%clk 0:00:04.5]} 36... Re4 {[%clk 0:01:14.4]} 0-1

[Event "Early-Titled-Tuesday-Blitz-January-16-2024"]
[Site "Chess.com"]
[Date "2024.01.16"]
[Round "4"]
[White "KChor05"]
[Black "Martial2008"]
[Result "0-1"]
[WhiteElo "2548"]
[BlackElo "2731"]
[TimeControl "180+1"]
[EndTime "8:40:33 PST"]
[Termination "Martial2008 won by resignation"]

1. e4 {[%clk 0:03:00.9]} 1... e5 {[%clk 0:02:57.1]} 2. Nf3 {[%clk 0:03:00.3]}
2... Nc6 {[%clk 0:02:52.4]} 3. Bb5 {[%clk 0:02:58.5]} 3... a6 {[%clk 0:02:51.3]}
4. Ba4 {[%clk 0:02:56.9]} 4... d6 {[%clk 0:02:51.4]} 5. c3 {[%clk 0:02:51.2]}
5... f5 {[%clk 0:02:50]} 6. Qe2 {[%clk 0:02:33.6]} 6... Nf6 {[%clk 0:02:43.9]}
7. exf5 {[%clk 0:02:19.5]} 7... Be7 {[%clk 0:02:40.7]} 8. O-O {[%clk 0:02:10]}
8... Bxf5 {[%clk 0:02:39]} 9. d4 {[%clk 0:02:05.1]} 9... e4 {[%clk 0:02:34.4]}
10. Nh4 {[%clk 0:02:03.9]} 10... Bg4 {[%clk 0:02:31.2]} 11. f3 {[%clk
0:02:02.1]} 11... exf3 {[%clk 0:02:30.8]} 12. Nxf3 {[%clk 0:02:03]} 12... O-O
{[%clk 0:02:30.2]} 13. Bxc6 {[%clk 0:01:44.9]} 13... bxc6 {[%clk 0:02:28.8]} 14.
Qc4+ {[%clk 0:01:44.8]} 14... d5 {[%clk 0:02:23.5]} 15. Qxc6 {[%clk 0:01:43.3]}
15... Bd7 {[%clk 0:02:23.1]} 16. Qb7 {[%clk 0:01:15.5]} 16... Bb5 {[%clk
0:02:17.7]} 17. Re1 {[%clk 0:01:12]} 17... Ne4 {[%clk 0:02:16.7]} 18. Na3 {[%clk
0:01:02.1]} 18... Bxa3 {[%clk 0:02:10.1]} 19. bxa3 {[%clk 0:01:03]} 19... Qd6
{[%clk 0:01:49.3]} 20. a4 {[%clk 0:00:41.7]} 20... Rfb8 {[%clk 0:01:45]} 21. Bf4
{[%clk 0:00:27.2]} 21... Rxb7 {[%clk 0:01:31.8]} 22. Bxd6 {[%clk 0:00:26.4]}
22... cxd6 {[%clk 0:01:27.7]} 23. axb5 {[%clk 0:00:26.2]} 23... axb5 {[%clk
0:01:28.6]} 24. Re3 {[%clk 0:00:17.5]} 24... Ra3 {[%clk 0:01:26.4]} 25. Rf1
{[%clk 0:00:12.7]} 25... Rc7 {[%clk 0:01:24.3]} 26. Ng5 {[%clk 0:00:11.7]} 26...
Rcxc3 {[%clk 0:01:06.3]} 27. Ne6 {[%clk 0:00:11.2]} 27... h6 {[%clk 0:01:03.7]}
28. Rf8+ {[%clk 0:00:09.9]} 28... Kh7 {[%clk 0:01:03.5]} 29. Re1 {[%clk
0:00:05.6]} 29... Rxa2 {[%clk 0:01:00.4]} 30. Rf7 {[%clk 0:00:04.8]} 30... Kg6
{[%clk 0:00:56.4]} 31. Rxg7+ {[%clk 0:00:05]} 31... Kf6 {[%clk 0:00:56.8]} 32.
Nc7 {[%clk 0:00:05]} 32... Kxg7 {[%clk 0:00:56]} 33. Nxd5 {[%clk 0:00:05.5]}
33... Rcc2 {[%clk 0:00:55.6]} 34. Rxe4 {[%clk 0:00:05.7]} 34... Ra1+ {[%clk
0:00:54.4]} 0-1